bitfinex/quotes_ETHUSD_20241003
["timestamp","ask_amount","ask_price","bid_price","bid_amount"]
[1727997719125,4.25153,2352.1,2351.4,4.25278]
[1727997719126,4.25164,2352.1,2351.7,4.2522]
[1727997719328,4.25172,2352.0,2351.6,4.25225]
[1727997719964,4.25172,2352.0,2351.7,4.25222]
[1727997720458,4.25172,2352.0,2351.6,4.25225]
[1727997720781,4.25172,2352.0,2351.5,0.7877]
[1727997720782,0.506942,2352.0,2351.5,0.7877]
[1727997720923,5.06907,2352.2,2351.9,4.25188]
[1727997721120,4.25119,2352.3,2351.9,5.03951]
[1727997721679,4.25119,2352.3,2352.0,4.25169]
[1727997722164,4.2515,2352.2,2351.9,0.7877]
[1727997722320,0.8177,2352.0,2351.4,1.68029503]
[1727997722524,4.25226,2351.7,2351.4,0.7877]
[1727997722751,8.50467,2351.7,2351.4,0.7877]
[1727997722950,4.25213,2351.8,2351.4,5.04045]
[1727997723258,4.25226,2351.7,2351.4,0.7877]
[1727997723439,4.758963,2351.9,2351.4,0.7877]
[1727997723626,4.25216,2351.8,2351.4,5.04034]
[1727997723825,4.758963,2351.9,2351.5,4.25257]
[1727997724051,0.8212,2352.2,2351.4,5.04034]
[1727997724371,4.25207,2351.8,2351.5,4.25259]
[1727997724535,5.07259,2352.2,2351.6,4.25235]
[1727997724722,4.25106,2352.4,2351.8,4.25199]
[1727997725062,4.25122,2352.3,2351.9,4.25179]
[1727997725270,4.25122,2352.3,2351.9,8.50352]
[1727997725566,1.035448,2352.3,2351.6,0.7926]
[1727997725763,4.25189,2351.9,2351.6,0.7926]
[1727997726059,4.25209,2351.8,2351.6,0.7926]
[1727997726627,4.25209,2351.8,2351.3,8.2526]
[1727997726826,4.25232,2351.7,2351.3,12.50552]
[1727997727096,4.25209,2351.8,2351.3,8.2526]
[1727997727397,4.25225,2351.7,2351.3,5.04551]
[1727997727569,5.07345,2351.7,2351.3,4.25291]
[1727997728077,0.8212,2351.7,2351.4,4.25269]
[1727997728278,5.07299,2352.0,2351.5,0.7926]
[1727997728469,5.07299,2352.0,2351.6,4.25234]
[1727997729380,4.25189,2351.9,2351.5,0.7926]
[1727997729692,4.25217,2351.8,2351.5,0.7926]
[1727997730182,4.25217,2351.8,2351.4,4.25278]
[1727997730378,0.8212,2352.0,2351.4,0.929816]
[1727997730585,4.25179,2352.0,2351.6,4.25229]
[1727997730826,8.50365,2352.0,2351.6,4.25229]
[1727997731095,4.25179,2352.0,2351.6,4.25229]
[1727997732257,4.25179,2352.0,2351.6,8.50458]
[1727997732459,0.8212,2352.3,2351.6,8.50458]
[1727997732460,0.8212,2352.3,2351.7,0.7926]
[1727997732696,4.25123,2352.3,2351.9,4.25179]
[1727997732858,4.25106,2352.4,2351.9,4.2518]
[1727997732859,4.25101,2352.4,2351.9,4.2518]
[1727997733196,4.25101,2352.4,2352.0,4.25162]
[1727997733554,5.07211,2352.5,2351.8,4.55794347]
[1727997733783,4.25108,2352.4,2352.0,4.25165]
[1727997734365,4.25117,2352.3,2351.9,4.25177]
[1727997734969,4.25108,2352.4,2352.0,4.25162]
[1727997735680,8.50222,2352.4,2352.0,4.25162]
[1727997736223,0.8212,2352.2,2351.5,5.04515]
[1727997736511,4.25183,2352.0,2351.5,5.04503]
[1727997736810,4.2518,2352.0,2351.6,4.25241]
[1727997736986,5.07226,2352.4,2352.0,4.25161]
[1727997737190,4.25141,2352.2,2351.9,0.7926]
[1727997738625,4.25119,2352.3,2351.9,5.04437]
[1727997739621,4.25119,2352.3,2351.9,0.7926]
[1727997739804,4.25119,2352.3,2351.9,5.04438]
[1727997740263,4.25119,2352.3,2351.9,5.974019]
[1727997741497,4.25119,2352.3,2351.9,6.05904701]
[1727997741717,8.5025,2352.3,2351.9,6.05904701]
[1727997742007,4.25119,2352.3,2351.9,6.05904701]
[1727997742218,5.07181,2352.6,2352.2,4.25132]
[1727997742426,4.25081,2352.5,2352.1,4.25145]
[1727997742723,4.25127,2352.3,2351.9,0.7926]
[1727997742891,4.25136,2352.2,2351.9,0.7926]
[1727997743223,4.25127,2352.3,2351.9,0.7926]
[1727997743512,4.25127,2352.3,2351.9,6.294798]
[1727997743721,4.25102,2352.4,2352.0,4.25157]
[1727997743882,4.25084,2352.5,2352.1,4.25148]
[1727997744078,4.25061,2352.7,2352.2,4.25125]
[1727997744307,4.25061,2352.6,2352.3,0.7926]
[1727997744514,4.2508,2352.5,2352.3,0.7926]
[1727997744683,4.25066,2352.6,2352.3,0.7926]
[1727997745088,4.25084,2352.5,2352.3,0.7926]
[1727997745304,8.07129,2352.9,2351.6,4.49733043]
[1727997745305,0.8212,2352.8,2351.6,4.49733043]
[1727997745526,4.25159,2352.1,2351.7,4.25216]
[1727997745677,4.25171,2352.0,2351.6,1.2184]
[1727997745881,4.25171,2352.0,2351.6,5.47077]
[1727997746419,4.25201,2351.9,2351.5,4.25252]
[1727997746585,4.25175,2352.0,2351.6,4.25235]
[1727997746923,4.25202,2351.9,2351.4,12.50535]
[1727997747419,4.25194,2351.9,2351.4,12.50535]
[1727997747593,4.25206,2351.8,2351.4,16.75804]
[1727997747789,4.25206,2351.8,2351.4,8.2526]
[1727997747790,5.07326,2351.8,2351.4,8.2526]
[1727997747991,4.25235,2351.7,2351.4,7.46]
[1727997748336,5.184911,2351.7,2351.4,7.46]
[1727997748482,5.184911,2351.7,2351.3,4.25283]
[1727997748823,5.184911,2351.7,2351.0,4.07153043]
[1727997748824,0.932561,2351.7,2351.0,4.86413043]
[1727997749113,4.252,2351.9,2351.4,5.04528]
[1727997749315,4.252,2351.9,2351.5,4.25259]
[1727997749907,0.507279,2352.1,2351.6,4.25233]
[1727997750105,4.25164,2352.1,2351.7,4.25216]
[1727997750311,4.25153,2352.1,2351.8,0.7926]
[1727997751080,5.07257,2352.2,2351.8,5.04466]
[1727997751281,9.324,2352.2,2351.8,5.04466]
[1727997751619,5.07257,2352.2,2351.8,0.7926]
[1727997752135,9.324,2352.2,2351.8,0.7926]
[1727997752281,4.25137,2352.2,2351.8,0.7926]
[1727997752481,4.25081,2352.5,2352.1,4.25151]
[1727997752721,4.25081,2352.5,2351.9,4.25174]
[1727997752891,4.25081,2352.5,2351.8,5.77575847]
[1727997752892,5.07178,2352.7,2352.1,4.25139]
[1727997753219,4.25081,2352.5,2352.1,4.25139]
[1727997754041,4.25081,2352.5,2351.9,4.25176]
[1727997754042,4.25106,2352.4,2352.0,4.25167]
[1727997754256,4.25106,2352.4,2351.9,8.50353]
[1727997754562,4.25106,2352.4,2352.0,4.25161]
[1727997755874,8.50217,2352.4,2352.0,4.25161]
[1727997756043,5.07007,2352.3,2351.8,5.04463]
[1727997756367,4.25152,2352.1,2351.7,4.25216]
[1727997756733,4.25172,2352.0,2351.6,5.0803]
[1727997756935,1.325907,2352.3,2351.4,4.07153043]
[1727997756936,5.07103,2351.8,2351.4,4.25275]
[1727997757472,0.8189,2351.8,2351.5,4.2526]
[1727997758227,4.25173,2352.0,2351.6,4.25241]
[1727997758452,4.25191,2351.9,2351.5,4.2526]
[1727997758656,4.25191,2351.9,2351.5,4.25251]
[1727997761402,4.25191,2351.9,2351.4,4.07153043]
[1727997761403,4.25213,2351.8,2351.4,4.25276]
[1727997761697,0.8189,2351.8,2351.5,4.25256]
[1727997762062,5.07103,2351.8,2351.4,4.25277]
[1727997762591,5.07103,2351.8,2351.3,1.7836488]
[1727997762592,4.25227,2351.7,2351.3,1.7836488]
[1727997762789,5.07103,2351.8,2351.4,4.25268]
[1727997762961,0.8189,2351.8,2351.3,1.7836488]
[1727997763162,4.25278,2351.4,2351.3,1.7836488]
[1727997763362,5.07168,2351.4,2351.3,1.7836488]
[1727997763994,0.8189,2351.4,2351.3,1.7836488]
[1727997764397,5.07139,2351.6,2351.3,1.7836488]
[1727997764737,5.07139,2351.6,2351.2,4.25305]
[1727997765063,10.35729144,2352.0,2351.7,4.25214]
[1727997765269,0.8189,2352.0,2351.7,4.25214]
[1727997765966,5.07061,2352.0,2351.6,4.25225]
[1727997769507,4.25188,2351.9,2351.6,4.25225]
[1727997770446,4.25188,2351.9,2351.5,4.331877]
[1727997770748,4.25188,2351.9,2351.5,5.68027174]
[1727997771652,8.50392,2351.9,2351.5,5.68027174]
[1727997772271,4.25188,2351.9,2351.5,5.68027174]
[1727997774156,8.50388,2351.9,2351.5,5.68027174]
[1727997774449,4.25188,2351.9,2351.5,5.68027174]
[1727997774852,4.25188,2351.9,2351.5,8.584367]
[1727997775019,4.25188,2351.9,2351.5,8.50505]
[1727997775347,4.25188,2351.9,2351.5,8.505]
[1727997775928,4.25188,2351.9,2351.5,4.25249]
[1727997779668,4.25188,2351.9,2351.5,4.33753172]
[1727997779820,8.50387,2351.9,2351.5,5.27935289]
[1727997780253,0.8189,2352.0,2351.8,4.25205]
[1727997780439,4.25111,2352.4,2352.0,4.25166]
[1727997780635,5.01091,2352.4,2351.8,8.32359043]
[1727997780876,5.01091,2352.4,2352.0,4.25163]
[1727997781179,0.7598,2352.4,2352.1,4.2515]
[1727997781358,0.7598,2352.4,2352.2,4.25123]
[1727997781562,0.7598,2352.7,2352.4,4.25095]
[1727997781762,2.6776025,2352.8,2352.6,4.25054]
[1727997782070,2.6776025,2352.8,2352.6,0.7553]
[1727997782368,2.6776025,2352.8,2352.4,4.2508]
[1727997782871,4.25062,2352.6,2352.2,4.25124]
[1727997783052,4.25062,2352.6,2352.2,5.62676204]
[1727997783257,0.7598,2352.7,2351.9,1.42757737]
[1727997783439,4.25088,2352.5,2352.1,4.25151]
[1727997784336,4.25064,2352.6,2352.1,4.25151]
[1727997784579,0.7598,2352.7,2352.2,4.25126]
[1727997784727,0.8137,2352.9,2352.4,4.07153043]
[1727997784928,0.8137,2352.9,2352.4,8.32248043]
[1727997785131,0.8137,2352.9,2352.6,4.25052]
[1727997785757,0.8137,2352.9,2352.3,0.7683]
[1727997785758,5.06381,2352.9,2352.3,5.01935]
[1727997785957,6.92462453,2353.4,2352.1,5.01972]
[1727997785958,0.8137,2352.6,2352.1,5.01972]
[1727997786179,0.8137,2352.6,2352.2,4.25133]
[1727997786479,5.06431,2352.6,2352.2,4.25133]
[1727997786771,4.25081,2352.5,2352.1,4.25142]
[1727997787141,5.06431,2352.6,2352.2,4.25133]
[1727997787540,0.8137,2352.6,2352.3,4.25114]
[1727997788468,5.06446,2352.6,2352.2,4.25133]
[1727997788681,9.31524,2352.6,2352.2,4.25133]
[1727997788830,5.06446,2352.6,2352.2,4.25133]
[1727997789262,5.06446,2352.6,2352.2,4.25127]
[1727997789656,4.25082,2352.5,2352.1,4.25148]
[1727997790240,5.06436,2352.6,2352.2,4.25132]
[1727997790575,4.25082,2352.5,2352.1,4.25144]
[1727997790735,4.25082,2352.5,2352.1,4.2514]
[1727997790930,5.06439,2352.6,2352.2,4.25132]
[1727997792483,5.06439,2352.6,2351.9,0.7683]
[1727997792484,5.0644,2352.6,2352.1,4.25136]
[1727997792649,5.0644,2352.6,2352.2,4.25124]
[1727997797892,0.8137,2352.6,2352.2,4.25124]
[1727997798097,0.8137,2352.6,2352.3,4.25106]
[1727997798296,4.25029,2352.8,2352.3,4.25106]
[1727997798297,0.8137,2352.8,2352.5,4.25072]
[1727997798669,0.8137,2352.8,2352.3,0.7683]
[1727997798874,5.06411,2352.8,2352.4,4.25092]
[1727997799400,5.06297,2353.4,2352.9,4.24996]
[1727997799608,0.506297,2353.4,2353.1,4.07153043]
[1727997799777,0.8137,2353.6,2353.2,4.24938]
[1727997800487,0.8137,2353.6,2353.3,4.24934]
[1727997800885,0.8137,2353.6,2353.3,8.32087043]
[1727997801187,4.42550218,2353.8,2353.1,0.7683]
[1727997801188,4.42550218,2353.8,2353.5,4.07153043]
[1727997801587,4.42550218,2353.8,2353.4,4.24909]
[1727997802592,8.67395218,2353.8,2353.4,4.24909]
[1727997802791,4.42550218,2353.8,2353.4,4.24909]
[1727997803216,4.42550218,2353.8,2353.4,5.50608304]
[1727997803793,8.67397218,2353.8,2353.4,5.50608304]
[1727997804880,4.24847,2353.8,2353.4,5.50608304]
[1727997805271,4.24863,2353.7,2353.4,1.25699304]
[1727997806993,4.24847,2353.8,2353.4,1.25699304]
[1727997807195,4.24865,2353.7,2353.4,1.25699304]
[1727997808912,4.24846,2353.8,2353.4,5.50614304]
[1727997809112,8.49702,2353.8,2353.4,5.50614304]
[1727997809289,8.49702,2353.8,2353.4,1.25699304]
[1727997809491,4.24863,2353.7,2353.4,1.25699304]
[1727997810833,4.24882,2353.6,2353.1,0.7683]
[1727997810993,7.24794,2354.1,2352.9,0.4258]
[1727997810994,4.24936,2353.3,2352.9,0.4258]
[1727997811198,0.8137,2353.5,2352.7,4.2504]
[1727997811399,5.06353,2353.1,2352.7,1.63407404]
[1727997811589,5.06353,2353.1,2352.7,9.95596447]
[1727997812032,4.25006,2353.0,2352.7,1.63407404]
[1727997812205,4.25002,2353.0,2352.5,4.25071]
[1727997812405,4.25002,2353.0,2352.6,4.25048]
[1727997813231,4.25008,2352.9,2352.5,4.25071]
[1727997813822,4.25008,2352.9,2352.5,8.5014]
[1727997814998,4.25008,2352.9,2352.5,4.25069]
[1727997815294,4.24993,2353.0,2352.5,5.62742504]
[1727997816300,4.24993,2353.0,2352.6,4.2506]
[1727997818007,5.0635,2353.1,2352.4,5.01913]
[1727997818205,4.24996,2353.0,2352.6,4.25061]
[1727997818401,5.0635,2353.1,2352.7,4.25042]
[1727997823422,5.0635,2353.1,2352.7,4.25035]
[1727997823609,5.0635,2353.1,2352.7,4.25034]
[1727997823812,5.0635,2353.1,2352.7,8.5007]
[1727997824017,5.0635,2353.1,2352.7,4.25034]
[1727997824516,0.8137,2353.1,2352.8,4.25014]
[1727997825746,5.06341,2353.1,2352.7,4.25039]
[1727997827123,5.06341,2353.1,2352.7,8.50073]
[1727997827324,0.8137,2353.1,2352.7,4.25034]
[1727997827519,0.8137,2353.1,2352.8,4.25024]
[1727997827743,5.06343,2353.1,2352.7,4.25039]
[1727997829453,0.8137,2353.1,2352.8,4.25024]
[1727997830313,5.06352,2353.1,2352.6,4.25057]
[1727997830515,4.2499,2353.0,2352.6,4.25057]
[1727997830711,5.06349,2353.1,2352.7,4.25041]
[1727997831548,4.25008,2352.9,2352.5,4.25072]
[1727997833327,4.25026,2352.8,2352.5,4.25072]
[1727997833855,5.569849,2353.1,2352.5,4.25071]
[1727997834028,4.24998,2353.0,2352.6,4.25058]
[1727997834737,5.06344,2353.1,2352.7,4.25035]
[1727997835049,3.0,2353.1,2352.8,5.04858]
[1727997836055,7.24982,2353.1,2352.7,4.25038]
[1727997836853,4.24989,2353.0,2352.7,4.25038]
[1727997838762,0.7922,2352.8,2352.3,0.7984]
[1727997838968,0.7922,2352.8,2352.2,4.25127]
[1727997838969,4.25067,2352.6,2352.2,4.25127]
[1727997839119,5.04245,2352.8,2352.2,4.25127]
[1727997839320,5.04245,2352.8,2352.3,4.25114]
[1727997839666,9.29285,2352.8,2352.4,4.25095]
[1727997839965,4.25044,2352.7,2352.3,4.25111]
[1727997840126,0.7922,2352.8,2352.3,4.25108]
[1727997840323,0.7922,2353.0,2352.6,4.2506]
[1727997840570,3.0,2353.0,2352.7,4.2504]
[1727997840738,7.24989,2353.0,2352.6,4.25056]
[1727997841065,7.24989,2353.0,2352.6,9.83825604]
[1727997841427,4.25015,2352.9,2352.6,1.33713604]
[1727997841628,4.25033,2352.8,2352.5,0.7984]
[1727997841834,3.0,2353.0,2352.5,5.04918]
[1727997841835,8.5003,2352.9,2352.5,5.04918]
[1727997842070,4.25011,2352.9,2352.5,6.06400258]
[1727997842378,8.50035,2352.9,2352.5,6.06400258]
[1727997842860,4.25026,2352.8,2352.5,1.81322258]
[1727997843061,4.25026,2352.8,2352.5,1.728398]
[1727997843272,4.25051,2352.7,2352.5,1.728398]
[1727997843440,4.25051,2352.7,2352.4,0.08482458]
[1727997843948,5.02946,2352.8,2352.4,4.33579458]
[1727997844373,9.27981,2352.8,2352.4,4.33579458]
[1727997844529,4.25045,2352.7,2352.4,0.08482458]
[1727997844866,4.25045,2352.7,2352.4,1.00678208]
[1727997845468,0.7792,2352.8,2352.1,0.8121]
[1727997845656,0.7792,2352.8,2352.2,4.25133]
[1727997845657,4.25086,2352.5,2352.2,4.25133]
[1727997845859,4.25065,2352.6,2352.2,4.25133]
[1727997846664,4.25065,2352.6,2352.1,5.06353]
[1727997846851,4.25082,2352.5,2352.1,6.44478804]
[1727997847280,4.25082,2352.5,2352.1,10.69622804]
[1727997848003,4.25065,2352.6,2352.2,4.2513]
[1727997850582,4.25065,2352.6,2352.1,6.44478804]
[1727997850759,4.25065,2352.6,2352.2,4.2513]
[1727997858816,0.7792,2352.8,2352.3,6.12860448]
[1727997858988,4.24989,2353.0,2352.5,1.87747448]
[1727997859185,4.24989,2353.0,2352.7,4.25042]
[1727997859735,4.69440939,2353.2,2352.9,1.87747448]
[1727997859952,2.67620586,2353.3,2353.1,1.87747448]
[1727997860226,2.67620586,2353.3,2353.2,5.06163]
[1727997860436,4.24847,2353.8,2353.4,4.24908]
[1727997860737,4.24847,2353.8,2353.4,6.12655448]
[1727997861398,4.24871,2353.7,2353.4,1.87747448]
[1727997861600,7.93279441,2353.6,2353.2,5.06148]
[1727997863240,4.24899,2353.5,2353.2,0.8121]
[1727997863447,4.24918,2353.4,2353.2,0.8121]
[1727997863804,4.24937,2353.3,2353.0,0.8121]
[1727997864648,4.24971,2353.1,2352.8,0.8121]
[1727997864933,4.24999,2353.0,2352.6,5.4888]
[1727997865307,4.24999,2353.0,2352.6,1.2383]
[1727997865515,0.7792,2353.2,2352.4,7.287734]
[1727997865516,8.5007,2352.8,2352.4,7.287734]
[1727997865724,4.25055,2352.7,2352.4,2.224694]
[1727997866702,4.25029,2352.8,2352.4,6.475664]
[1727997866907,4.25029,2352.8,2352.4,5.14104799]
[1727997867228,8.50067,2352.8,2352.4,4.25097]
[1727997867537,4.25047,2352.7,2352.3,4.25113]
[1727997867837,4.25029,2352.8,2352.3,6.33497427]
[1727997868004,4.25029,2352.8,2352.4,4.25095]
[1727997868206,8.50067,2352.8,2352.3,6.33497427]
[1727997868535,4.25029,2352.8,2352.4,4.25094]
[1727997868750,8.50069,2352.8,2352.4,4.25094]
[1727997869241,4.25054,2352.7,2352.3,4.25114]
[1727997869448,4.25054,2352.7,2352.2,5.06342]
[1727997869648,4.25062,2352.6,2352.2,1.33788627]
[1727997869800,4.25081,2352.5,2352.1,4.2515]
[1727997870456,4.25097,2352.4,2352.0,5.06364]
[1727997871237,0.7792,2352.8,2352.0,5.06364]
[1727997871436,4.25082,2352.5,2352.1,5.16416427]
[1727997871761,4.25099,2352.4,2352.0,9.31542]
[1727997871972,4.25082,2352.5,2352.0,9.31536]
[1727997872124,4.25082,2352.5,2352.1,4.25149]
[1727997873454,4.25101,2352.4,2352.0,5.06372]
[1727997873659,4.25101,2352.4,2352.0,5.06371]
[1727997874236,4.25082,2352.5,2352.1,4.25151]
[1727997876928,8.50174,2352.5,2352.1,4.25151]
[1727997877123,0.8159,2352.4,2351.8,0.7537]
[1727997877333,4.25136,2352.2,2351.6,5.00595]
[1727997877571,4.25163,2352.1,2351.7,4.25216]
[1727997877775,4.25173,2352.0,2351.6,5.00595]
[1727997877929,4.25173,2352.0,2351.6,6.61202206]
[1727997878359,4.25173,2352.0,2351.6,10.86431206]
[1727997881034,4.25135,2352.2,2351.7,4.25216]
[1727997881269,8.50277,2352.2,2351.8,4.25203]
[1727997881833,4.25153,2352.1,2351.6,6.61217206]
[1727997882049,4.25153,2352.1,2351.6,10.86447206]
[1727997882967,4.25172,2352.0,2351.6,6.61207206]
[1727997883371,4.25154,2352.1,2351.7,4.25216]
[1727997886379,4.2517,2352.0,2351.6,6.61207206]
[1727997890393,8.50357,2352.0,2351.6,6.61207206]
[1727997890681,4.25195,2351.9,2351.6,2.35977206]
[1727997893686,4.25195,2351.9,2351.6,4.23804197]
[1727997894386,4.25195,2351.9,2351.6,6.88438991]
[1727997894871,4.25195,2351.9,2351.6,2.63196991]
[1727997895457,4.25195,2351.9,2351.6,1.87826991]
[1727997895783,0.7784,2352.0,2351.3,4.25279]
[1727997896085,8.50477,2351.7,2351.3,4.25279]
[1727997896325,8.50477,2351.7,2351.2,5.0256]
[1727997896326,4.25243,2351.6,2351.2,5.0256]
[1727997896584,4.25243,2351.6,2351.3,1.11570399]
[1727997896791,4.25236,2351.7,2351.3,5.36863399]
[1727997896989,8.5047,2351.7,2351.3,5.36863399]
[1727997897192,8.50468,2351.7,2351.3,5.36863399]
[1727997897786,4.25234,2351.7,2351.3,1.11570399]
[1727997897948,4.2525,2351.6,2351.2,5.0256]
[1727997898144,4.25269,2351.5,2351.2,0.7725]
[1727997898349,0.7784,2351.6,2351.2,0.7725]
[1727997898550,5.03085,2351.6,2351.2,5.9778531]
[1727997898991,9.28335,2351.6,2351.2,5.9778531]
[1727997899779,5.03085,2351.6,2351.2,5.9778531]
[1727997900162,5.03042,2351.9,2351.3,8.32392095]
[1727997900380,4.25202,2351.9,2351.6,0.7725]
[1727997901313,4.25159,2352.1,2351.7,8.32314095]
[1727997901807,4.25159,2352.1,2351.7,4.07098095]
[1727997901808,4.25171,2352.0,2351.7,4.07098095]
[1727997902173,8.50357,2352.0,2351.6,5.02487]
[1727997902364,8.50357,2352.0,2351.7,0.9522051]
[1727997902576,4.25159,2352.1,2351.7,5.2044351]
[1727997902801,0.7784,2352.3,2351.7,0.9522051]
[1727997903170,4.25186,2352.0,2351.7,0.9522051]
[1727997904393,0.7784,2352.3,2351.8,0.08502945]
[1727997904601,4.25116,2352.3,2351.9,9.08849095]
[1727997905093,4.25086,2352.5,2352.2,0.7657]
[1727997905407,4.25063,2352.6,2352.2,0.7657]
[1727997905722,4.2508,2352.5,2352.2,0.7657]
[1727997905897,4.2508,2352.5,2352.3,0.9088121]
[1727997906568,4.25115,2352.3,2352.0,0.7657]
[1727997906916,4.25115,2352.3,2351.8,0.7657]
[1727997906917,4.25147,2352.2,2351.8,0.7657]
[1727997907411,4.25159,2352.1,2351.8,0.7657]
[1727997908076,4.25175,2352.0,2351.6,5.01811]
[1727997908284,4.25189,2351.9,2351.6,0.7657]
[1727997908606,4.25189,2351.9,2351.6,1.267548]
[1727997909175,4.25175,2352.0,2351.6,5.519848]
[1727997909411,4.25146,2352.2,2351.6,1.267548]
[1727997909577,4.25108,2352.4,2352.0,5.01738]
[1727997909778,5.02523,2352.6,2352.0,5.01738]
[1727997909779,7.25082,2352.5,2352.0,5.01738]
[1727997909978,7.25082,2352.5,2352.1,4.25151]
[1727997910213,4.25099,2352.4,2352.0,5.01738]
[1727997910414,4.25082,2352.5,2352.1,4.25144]
[1727997911017,4.25107,2352.4,2352.0,6.35139309]
[1727997916153,8.0845,2353.0,2352.4,0.7657]
[1727997916292,4.25032,2352.8,2352.4,5.01655]
[1727997916494,4.24994,2353.0,2352.6,4.25059]
[1727997916794,4.24994,2353.0,2352.6,8.32157095]
[1727997917129,4.25007,2352.9,2352.6,4.07098095]
[1727997917519,4.25007,2352.9,2352.5,4.25077]
[1727997917832,4.25007,2352.9,2352.5,5.5846121]
[1727997918387,0.7745,2353.2,2352.6,0.55]
[1727997918388,4.24972,2353.1,2352.6,0.55]
[1727997918596,4.24972,2353.1,2352.7,4.25031]
[1727997918930,4.24972,2353.1,2352.8,0.7987]
[1727997921030,9.27379,2353.2,2352.8,0.7987]
[1727997921233,4.24976,2353.1,2352.8,0.7987]
[1727997921567,5.02414,2353.2,2352.5,4.25069]
[1727997921568,0.7745,2353.2,2352.5,4.25069]
[1727997921766,4.2502,2352.9,2352.6,0.7987]
[1727997922075,4.25042,2352.8,2352.4,0.7987]
[1727997922373,4.25044,2352.7,2352.0,1.69008645]
[1727997922534,4.25106,2352.4,2352.0,5.94174645]
[1727997922929,4.25082,2352.5,2352.0,5.94166645]
[1727997923128,4.25082,2352.5,2352.1,4.2514]
[1727997923325,4.25048,2352.7,2352.2,4.25133]
[1727997923569,4.25063,2352.6,2352.2,4.25133]
[1727997923969,4.25079,2352.5,2352.2,5.5885711]
[1727997924536,0.7584,2353.0,2352.3,0.7987]
[1727997924735,7.24979,2353.1,2352.7,5.04908]
[1727997924937,4.24978,2353.1,2352.7,5.04908]
[1727997925171,4.25002,2353.0,2352.7,0.7987]
[1727997925755,8.50002,2353.0,2352.7,0.7987]
[1727997926282,4.25,2353.0,2352.7,0.7987]
[1727997926667,8.50001,2353.0,2352.7,0.7987]
[1727997928211,4.25,2353.0,2352.7,0.7987]
[1727997929677,4.25025,2352.8,2352.5,5.04947]
[1727997930241,4.25008,2352.9,2352.5,5.04947]
[1727997932322,5.00831,2353.0,2352.6,4.2506]
[1727997932779,4.25014,2352.9,2352.5,5.04945]
[1727997933196,4.25027,2352.8,2352.4,4.25095]
[1727997933393,4.25027,2352.8,2352.3,5.06244]
[1727997933394,4.25045,2352.7,2352.3,5.06244]
[1727997934218,8.50105,2352.7,2352.3,0.8114]
[1727997934386,4.25063,2352.6,2352.3,0.8114]
[1727997935616,8.50105,2352.7,2352.3,5.06254]
[1727997936390,4.25045,2352.7,2352.3,5.06254]
[1727997937223,0.8258,2353.4,2352.7,4.25034]
[1727997937383,4.2496,2353.2,2352.7,4.25032]
[1727997937723,4.2496,2353.2,2352.8,4.25022]
[1727997937930,4.2496,2353.2,2352.6,4.07098095]
[1727997938096,4.2496,2353.2,2352.7,4.25039]
[1727997938097,4.2498,2353.1,2352.7,4.25039]
[1727997938632,4.24956,2353.2,2352.8,4.25017]
[1727997938799,4.24956,2353.2,2352.9,0.8114]
[1727997939231,4.24973,2353.1,2352.9,0.8114]
[1727997939882,4.24989,2353.0,2352.9,0.8114]
[1727997940088,4.2498,2353.1,2352.7,6.4001631]
[1727997940283,8.49964,2353.1,2352.7,6.4001631]
[1727997940592,4.2498,2353.1,2352.7,6.4001631]
[1727997940801,8.49964,2353.1,2352.7,6.4001631]
[1727997941496,4.25037,2352.8,2352.4,5.06231]
[1727997941831,4.25088,2352.5,2352.2,0.8114]
[1727997941984,4.25101,2352.4,2352.0,5.06307]
[1727997942183,4.25101,2352.4,2352.0,6.40166209]
[1727997942707,4.25101,2352.4,2352.1,4.25151]
[1727997942900,5.07641,2352.6,2352.0,6.22097304]
[1727997943098,4.24866,2353.7,2352.4,4.88238095]
[1727997943336,4.24992,2353.0,2352.6,4.25052]
[1727997943834,4.24992,2353.0,2352.5,4.25079]
[1727997944129,8.49999,2353.0,2352.5,4.25079]
[1727997944334,4.24992,2353.0,2352.5,4.25079]
[1727997944483,4.2501,2352.9,2352.6,0.9133171]
[1727997946542,4.2501,2352.9,2352.4,5.06235]
[1727997946829,5.07619,2352.8,2352.5,0.0834448]
[1727997947214,4.25044,2352.7,2352.5,0.0834448]
[1727997947419,4.25044,2352.7,2352.0,12.63744098]
[1727997947420,4.2508,2352.5,2352.0,5.14030003]
[1727997947604,4.2508,2352.5,2352.1,4.67175329]
[1727997947800,4.2508,2352.5,2352.1,4.25151]
[1727997948737,0.8258,2352.8,2352.2,4.25122]
[1727997948890,4.25026,2352.8,2352.4,5.06224]
[1727997949095,4.25026,2352.8,2352.3,0.07435464]
[1727997949096,4.25051,2352.7,2352.3,4.25107]
[1727997949406,5.07648,2352.6,2352.2,5.06272]
[1727997950935,9.26589,2352.8,2352.3,4.25107]
[1727997951834,4.25062,2352.6,2352.2,5.9760001]
[1727997952506,4.25046,2352.7,2352.3,4.32062855]
[1727997952860,4.25019,2352.9,2352.3,0.06947855]
[1727997953032,4.25042,2352.8,2352.4,4.25096]
[1727997953533,8.50085,2352.8,2352.4,4.25096]
[1727997953723,4.25045,2352.7,2352.3,4.90712151]
[1727997954703,4.2501,2352.9,2352.5,4.25062]
[1727997955021,4.24981,2353.1,2352.5,4.32009264]
[1727997955223,4.24996,2353.0,2352.6,4.25052]
[1727997956434,4.24996,2353.0,2352.6,1.38642331]
[1727997956673,4.25008,2352.9,2352.6,1.38642331]
[1727997957815,0.7652,2353.2,2352.7,0.86304175]
[1727997958140,4.2496,2353.2,2352.8,4.25022]
[1727997958339,4.24972,2353.1,2352.8,4.31557369]